bitfinex-derivatives/quotes_SOLF0:USTF0_20260110
["timestamp","ask_amount","ask_price","bid_price","bid_amount"]
[1768016518134,6.6199,136.13,136.07,0.60073962]
[1768016518738,7.20694801,136.13,136.07,0.60073962]
[1768016521042,1.18481324,136.14,136.04,7.22473962]
[1768016521043,7.20764801,136.12,136.04,7.22473962]
[1768016521250,0.58704801,136.11,136.04,7.22473962]
[1768016521452,0.58704801,136.11,136.05,0.60073962]
[1768016522551,7.20804801,136.11,136.05,0.60073962]
[1768016531752,0.58704801,136.11,136.05,7.22433962]
[1768016532449,0.58704801,136.11,136.05,0.60073962]
[1768016532646,0.58704801,136.11,136.03,7.18815357]
[1768016532955,0.5911482,136.1,136.03,7.18815357]
[1768016533352,0.5911482,136.1,136.04,0.56385357]
[1768016534658,0.5911482,136.09,136.02,0.56385357]
[1768016535657,0.5911482,136.09,135.95,20.6256]
[1768016535658,0.5911482,136.05,136.0,0.56385357]
[1768016535857,0.5911482,136.05,135.98,0.56385357]
[1768016537558,7.2150482,136.05,135.98,0.56385357]
[1768016539354,0.5911482,136.05,135.99,0.56385357]
[1768016543564,7.2143482,136.07,136.0,0.56385357]
[1768016544463,0.5911482,136.07,136.01,0.56385357]
[1768016565774,7.2139482,136.07,136.01,0.56385357]
[1768016574882,7.2139482,136.07,136.0,6.6261]
[1768016574883,7.07810833,136.09,136.02,0.46884675]
[1768016575670,7.07810833,136.09,136.02,7.09384675]
[1768016576074,7.07810833,136.09,136.03,0.46884675]
[1768016582689,0.45600833,136.08,136.03,0.46884675]
[1768016590590,0.45600833,136.08,136.02,7.81151661]
[1768016590891,1.18651661,136.11,135.98,1.66340044]
[1768016590892,0.46660423,136.06,135.98,1.66340044]
[1768016591595,0.46660423,136.06,135.99,6.6265]
[1768016591787,0.46660423,136.04,135.98,0.47688383]
[1768016591993,0.46660423,136.04,135.96,1.66340044]
[1768016592196,0.46660423,136.03,135.97,6.6273]
[1768016592997,0.46660423,136.03,135.97,7.10418383]
[1768016597791,6.6254,136.02,135.94,6.6288]
[1768016597998,0.46660423,136.01,135.95,0.47688383]
[1768016604812,0.46660423,136.0,135.95,0.47688383]
[1768016605309,0.46660423,136.0,135.93,0.47688383]
[1768016606113,0.46660423,135.99,135.93,0.47688383]
[1768016606309,1.65312084,136.02,135.94,0.47688383]
[1768016606617,0.46660423,136.01,135.94,0.47688383]
[1768016607616,0.46660423,136.0,135.94,0.47688383]
[1768016609516,0.46660423,135.97,135.88,1.18651661]
[1768016609717,0.46660423,135.97,135.89,0.47688383]
[1768016610620,0.46660423,135.96,135.9,0.47688383]
[1768016615623,0.41504659,135.94,135.88,0.4202528]
[1768016616527,7.04434659,135.94,135.88,0.4202528]
[1768016617427,0.41504659,135.94,135.88,0.4202528]
[1768016621529,0.41504659,135.96,135.9,0.4202528]
[1768016634939,0.39625012,135.98,135.92,0.41505593]
[1768016641248,0.39625012,135.98,135.92,7.04495593]
[1768016641745,0.39625012,135.98,135.93,7.04455593]
[1768016656279,7.01322657,136.0,135.94,0.42389771]
[1768016656871,0.38692657,135.99,135.94,0.42389771]
[1768016657177,0.38692657,135.98,135.92,0.42389771]
[1768016662487,0.38692657,135.98,135.93,0.42389771]
[1768016663582,6.6262,136.0,135.93,0.42389771]
[1768016663785,0.38692657,135.99,135.93,0.42389771]
[1768016670194,0.38692657,136.01,135.95,0.42389771]
[1768016670390,0.38692657,136.03,135.96,1.85663273]
[1768016670588,0.38692657,136.03,135.97,0.42389771]
[1768016676193,6.6245,136.04,135.94,0.37533387]
[1768016676194,0.37599195,136.0,135.94,0.37533387]
[1768016678287,0.37599195,136.0,135.92,0.37533387]
[1768016678492,2.23262468,136.0,135.92,0.37533387]
[1768016678790,0.37599195,135.99,135.92,0.37533387]
[1768016679692,0.37599195,135.98,135.92,0.37533387]
[1768016680589,0.37599195,135.96,135.9,0.37533387]
[1768016693807,0.37599195,135.96,135.91,0.39338912]
[1768016694009,7.01142456,135.99,135.91,0.39338912]
[1768016694305,0.38452456,135.98,135.91,0.39338912]
[1768016700210,0.38452456,135.98,135.92,0.39338912]
[1768016700903,6.6269,135.99,135.92,0.39338912]
[1768016701212,0.38452456,136.0,135.93,0.39338912]
[1768016702813,0.38452456,136.0,135.94,0.39338912]
[1768016708616,0.36632576,135.99,135.94,0.39338912]
[1768016709621,0.36632576,135.98,135.92,0.36285193]
[1768016716233,0.36632576,136.0,135.93,0.36285193]
[1768016717026,0.36632576,136.0,135.94,6.6291]
[1768016717332,0.36632576,136.0,135.95,0.36285193]
[1768016721530,1.55491222,136.0,135.95,0.36285193]
[1768016722633,6.99322576,135.99,135.92,6.99295193]
[1768016722840,0.36632576,135.98,135.92,0.36285193]
[1768016725141,0.36632576,135.98,135.92,6.99295193]
[1768016725641,0.36632576,135.96,135.9,0.36285193]
[1768016726035,1.55491222,135.98,135.9,0.36285193]
[1768016726237,8.18221222,135.98,135.91,0.36285193]
[1768016728044,1.55491222,135.98,135.91,0.36285193]
[1768016728238,1.55491222,135.98,135.91,6.99325193]
[1768016728438,1.55491222,135.98,135.92,0.36285193]
[1768016728636,0.36632576,135.99,135.92,0.36285193]
[1768016729339,0.36632576,135.99,135.92,1.55143839]
[1768016729545,0.36632576,135.99,135.93,0.36285193]
[1768016734543,0.36632576,135.99,135.92,7.81858646]
[1768016734544,0.36632576,135.99,135.88,112.30874011]
[1768016734748,0.35178039,135.98,135.91,0.34261698]
[1768016736650,0.35178039,135.98,135.91,6.97311698]
[1768016737545,0.35178039,135.97,135.9,6.97361698]
[1768016737748,0.35178039,135.97,135.91,0.34261698]
[1768016740454,0.35178039,135.97,135.91,6.97291698]
[1768016744256,1.54036685,135.99,135.93,0.34261698]
[1768016744461,0.35178039,135.99,135.93,0.34261698]
[1768016751766,6.97858039,135.99,135.93,0.34261698]
[1768016761379,0.34878536,135.98,135.92,6.63]
[1768016761577,0.34878536,135.97,135.91,0.35425479]
[1768016763383,0.330179,135.99,135.93,0.34490348]
[1768016769183,0.330179,136.01,135.94,0.34490348]
[1768016769382,0.330179,136.01,135.95,0.34490348]
[1768016771984,0.330179,136.01,135.96,0.34490348]
[1768016774989,0.330179,136.01,135.96,6.97290348]
[1768016783890,6.6246,136.04,135.97,0.34490348]
[1768016783891,0.330179,136.03,135.97,0.34490348]
[1768016795000,0.33843861,136.05,135.98,0.33109594]
[1768016796699,6.96233861,136.05,135.98,0.33109594]
[1768016798801,0.33843861,136.05,135.99,0.33109594]
[1768016799605,0.33843861,136.05,136.0,0.33109594]
[1768016807409,0.33843861,136.07,136.01,0.33109594]
[1768016808604,0.33843861,136.07,136.01,6.95669594]
[1768016817513,0.33843861,136.07,136.02,0.31352611]
[1768016824315,0.33843861,136.07,136.01,6.6256]
[1768016824821,0.33843861,136.07,136.0,0.33626822]
[1768016825715,0.31710094,136.06,136.0,0.33626822]
[1768016829122,1.85581053,136.08,136.01,0.33626822]
[1768016829123,0.31710094,136.08,136.01,0.33626822]
[1768016829715,0.31710094,136.08,136.03,0.33626822]
[1768016838534,0.31710094,136.07,136.01,6.96186822]
[1768016844542,0.31710094,136.07,136.02,0.33626822]
[1768016846539,0.31710094,136.07,136.0,0.33626822]
[1768016847745,0.31710094,136.05,136.0,0.33626822]
[1768016850744,0.31710094,136.05,135.98,0.33626822]
[1768016850745,0.31710094,136.04,135.98,0.33626822]
[1768016856055,1.51724921,136.06,135.99,0.32455415]
[1768016859153,1.18657056,136.06,135.99,0.32455415]
[1768016859352,0.33067865,136.05,135.99,0.32455415]
[1768016861064,0.05262553,136.03,136.0,0.32455415]
[1768016861360,0.33067865,136.07,136.01,0.37718783]
[1768016863664,0.33067865,136.07,136.01,7.00278783]
[1768016863857,1.51724921,136.08,136.02,0.32455415]
[1768016865266,1.51724921,136.08,136.02,6.94975415]
[1768016867051,1.18657056,136.08,136.03,6.94915415]
[1768016867248,1.51724921,136.1,136.04,0.32455415]
[1768016867656,0.33067865,136.1,136.04,0.32455415]
[1768016867855,0.33067865,136.1,136.06,0.04698484]
[1768016880670,1.56887089,136.09,136.01,6.6253]
[1768016880877,1.56887089,136.09,136.02,0.3102277]
[1768016881175,0.32760484,136.08,136.02,0.3102277]
[1768016881868,0.32760484,136.08,136.02,6.9354277]
[1768016882068,0.32760484,136.08,136.04,0.0494184]
[1768016942525,0.05469549,136.09,136.04,0.37666951]
[1768016948727,0.05469549,136.09,136.04,7.00086951]
[1768016948930,0.05469549,136.09,136.05,0.30832727]
[1768016951122,1.85400568,136.14,136.04,0.0494184]
[1768016951123,0.31796816,136.12,136.06,0.30832727]
[1768016952329,0.31796816,136.12,136.08,0.04893313]
[1768016962129,7.80537672,136.14,136.08,0.3572604]
[1768016962130,0.31796816,136.14,136.08,0.3572604]
[1768016963429,0.31796816,136.15,136.09,0.30832727]
[1768016963624,1.50384488,136.16,136.09,0.30832727]
[1768016963826,0.31796816,136.15,136.09,0.30832727]
[1768016964532,0.31796816,136.15,136.11,0.05495581]
[1768016972034,0.31796816,136.14,136.11,0.05495581]
[1768016973736,0.31796816,136.14,136.08,6.93052727]
[1768016975836,0.31796816,136.14,136.08,0.30832727]
[1768016983235,0.31796816,136.14,136.06,0.33444603]
[1768016984542,0.32454268,136.13,136.06,6.95764603]
[1768016985449,0.32454268,136.13,136.07,0.33444603]
[1768016994655,0.32454268,136.13,136.07,1.52032275]
[1768016997252,0.32454268,136.13,136.09,0.04760469]
[1768016998355,7.80467672,136.16,136.09,0.04760469]
[1768016998356,0.30763741,136.15,136.09,0.36738849]
[1768017000555,0.30763741,136.15,136.1,0.3197838]
[1768017000951,0.30763741,136.15,136.1,6.9409838]
[1768017001258,0.30763741,136.17,136.11,0.3197838]
[1768017002160,0.30763741,136.17,136.11,6.9404838]
[1768017005259,0.30763741,136.17,136.11,0.3197838]
[1768017008967,0.32135933,136.15,136.09,1.50864184]
[1768017009666,0.32135933,136.15,136.1,0.32276512]
[1768017011775,0.32135933,136.15,136.11,0.04766879]
[1768017018786,0.32135933,136.18,136.11,0.37043391]
[1768017018981,5.56784137,136.17,136.11,0.37043391]
[1768017019187,0.32135933,136.17,136.11,0.37043391]
[1768017022885,0.32135933,136.17,136.11,6.99123391]
[1768017027386,0.32135933,136.17,136.11,0.37043391]
[1768017030292,6.93945933,136.17,136.11,0.37043391]
[1768017034896,0.30930574,136.16,136.11,0.37043391]
[1768017049909,6.6176,136.18,136.11,0.37043391]
[1768017050107,5.22939523,136.17,136.11,0.37043391]
[1768017050308,0.31235873,136.17,136.11,0.37043391]
[1768017050906,6.93035873,136.17,136.11,0.37043391]
[1768017051307,0.31235873,136.17,136.11,0.37043391]
[1768017088763,0.04673885,136.15,136.11,0.37043391]
[1768017092566,0.37805054,136.15,136.11,0.04766879]
[1768017092863,0.33131169,136.13,136.07,0.3105745]
[1768017093265,0.33131169,136.13,136.08,0.32353305]
[1768017114985,0.33131169,136.13,136.08,6.94573305]
[1768017135606,5.74354273,136.12,136.08,6.94573305]
[1768017135907,0.33131169,136.13,136.08,6.94573305]
[1768017136103,5.74354273,136.12,136.08,6.94573305]
[1768017136294,0.33131169,136.13,136.08,6.94573305]
[1768017136602,5.74488097,136.12,136.08,6.94573305]
[1768017136799,0.33131169,136.13,136.08,6.94573305]
[1768017137000,5.74488099,136.12,136.08,6.94573305]
[1768017137196,0.33131169,136.13,136.08,6.94573305]
[1768017137396,5.74493065,136.12,136.08,6.94573305]
[1768017137601,0.33131169,136.13,136.08,6.94573305]
[1768017137896,5.74686332,136.12,136.08,6.94573305]
[1768017138096,0.33131169,136.13,136.08,6.94573305]
[1768017138300,5.74686332,136.12,136.08,6.94573305]
[1768017138510,0.33131169,136.13,136.08,6.94573305]
[1768017138707,5.74706275,136.12,136.08,6.94573305]
[1768017138907,0.33131169,136.13,136.08,6.94573305]
[1768017139102,5.74726351,136.12,136.08,6.94573305]
[1768017139395,0.33131169,136.13,136.08,6.94573305]
[1768017139596,5.74722961,136.12,136.08,6.94573305]
[1768017139795,0.33131169,136.13,136.08,6.94573305]
[1768017140006,5.74722961,136.12,136.08,6.94573305]
[1768017140207,0.33131169,136.13,136.08,6.94573305]
[1768017140402,5.74721452,136.12,136.08,6.94573305]
[1768017140603,0.33131169,136.13,136.08,6.94573305]
[1768017140804,5.74720253,136.12,136.08,6.94573305]
[1768017141009,0.33131169,136.13,136.08,6.94573305]
[1768017141212,5.74720412,136.12,136.08,6.94573305]
[1768017141417,0.33131169,136.13,136.08,6.94573305]
[1768017141605,5.74720444,136.12,136.08,6.94573305]
[1768017141806,0.33131169,136.13,136.08,6.94573305]
[1768017142105,5.74720444,136.12,136.08,6.94573305]
[1768017142409,0.3019832,136.18,136.1,0.31917726]
[1768017142610,5.74641675,136.17,136.1,0.31917726]
[1768017142809,5.74641675,136.16,136.1,0.31917726]
[1768017143107,0.3019832,136.18,136.1,0.31917726]
[1768017143308,5.51875432,136.17,136.1,0.31917726]
[1768017143507,5.51875432,136.16,136.1,0.31917726]
[1768017143709,0.3019832,136.18,136.11,6.93987726]
[1768017143912,5.51598569,136.17,136.11,6.93987726]
[1768017144112,5.51598569,136.16,136.11,6.93987726]
[1768017144303,0.3019832,136.18,136.11,6.93987726]
[1768017144503,5.51423358,136.17,136.11,6.93987726]
[1768017144700,5.51423358,136.16,136.11,6.93987726]
[1768017144905,0.3019832,136.18,136.12,0.31917726]
[1768017145113,0.3019832,136.2,136.13,0.31917726]
[1768017146715,0.3019832,136.2,136.13,6.93897726]
[1768017148014,0.0469901,136.18,136.15,0.05357178]
[1768017194841,0.0469901,136.18,136.13,0.31917726]
[1768017194842,6.98597947,136.18,136.13,0.31917726]
[1768017195043,5.67817228,136.17,136.1,0.30282922]
[1768017195241,0.32138937,136.17,136.1,0.30282922]
[1768017196237,0.0496685,136.15,136.1,0.30282922]
[1768017196741,0.0496685,136.15,136.11,0.30282922]
[1768017198745,0.00629062,136.15,136.11,0.30282922]
[1768017200143,0.00629062,136.15,136.11,6.92352922]
[1768017200444,0.00629062,136.15,136.12,0.30282922]
[1768017217257,22.845737,136.3,136.13,0.32152035]
[1768017217258,6.92820639,136.21,136.13,0.32152035]
[1768017217453,5.34296988,136.2,136.14,0.32152035]
[1768017217656,5.34296988,136.19,136.14,0.32152035]
[1768017217857,6.92820639,136.21,136.14,0.32152035]
[1768017218066,5.34284824,136.2,136.14,0.32152035]
[1768017218260,5.34284824,136.19,136.14,0.32152035]
[1768017218453,0.31180639,136.21,136.14,0.32152035]
[1768017218657,5.34211734,136.2,136.14,0.32152035]
[1768017218860,0.31180639,136.21,136.14,0.32152035]
[1768017219061,5.34211734,136.2,136.14,0.32152035]
[1768017219262,0.31180639,136.21,136.14,0.32152035]
[1768017219465,5.34176346,136.2,136.14,0.32152035]
[1768017219763,0.31180639,136.21,136.15,0.32152035]
[1768017220063,5.34176346,136.2,136.15,0.32152035]
[1768017220257,0.31180639,136.21,136.15,0.32152035]
[1768017223462,5.33978146,136.2,136.15,0.32152035]
[1768017223658,0.31180639,136.21,136.15,0.32152035]
[1768017224466,0.31180639,136.21,136.15,6.94022035]
[1768017225268,0.31180639,136.21,136.15,0.32152035]
[1768017247781,1.18490657,136.23,136.15,0.32152035]
[1768017247782,0.31548133,136.23,136.16,0.30480373]
[1768017248483,0.04974573,136.21,136.16,0.30480373]
[1768017248685,0.04974573,136.21,136.18,0.357443]
[1768017248878,0.31548133,136.23,136.18,0.357443]
[1768017249775,1.18490657,136.22,136.18,0.357443]
[1768017251878,1.5003879,136.22,136.18,0.05263927]
[1768017252785,0.31548133,136.22,136.18,0.05263927]
[1768017273605,6.93711924,136.24,136.18,0.37517989]
[1768017273819,0.32251924,136.23,136.18,0.37517989]
[1768017274711,0.32251924,136.25,136.18,0.37517989]
[1768017275206,0.32251924,136.25,136.18,0.32254062]
[1768017275613,0.32251924,136.25,136.2,0.05600948]
[1768017302035,0.32251924,136.25,136.2,0.35583542]
[1768017304535,6.6132,136.27,136.2,0.35583542]
[1768017304838,6.91584986,136.27,136.2,0.35583542]
[1768017305238,0.30264986,136.27,136.2,0.35583542]
[1768017308539,0.30264986,136.27,136.2,0.05600948]
[1768017310742,0.30264986,136.27,136.2,0.38569772]
[1768017319847,0.30264986,136.25,136.2,0.05600948]
[1768017320351,0.30264986,136.25,136.18,0.32968824]
[1768017320653,0.30264986,136.25,136.21,0.05155804]
[1768017328666,0.30264986,136.27,136.21,0.38124628]
[1768017333868,0.30264986,136.27,136.21,6.99704628]
[1768017334063,0.30264986,136.27,136.21,0.05155804]
[1768017334270,0.30264986,136.27,136.22,0.32072811]
[1768017334469,0.30264986,136.27,136.22,6.93582811]
[1768017335270,7.79569281,136.3,136.22,6.6151]
[1768017335472,0.33059109,136.29,136.23,0.32072811]
[1768017336072,0.33059109,136.29,136.25,0.04688622]
[1768017338963,0.33059109,136.29,136.22,6.6151]
[1768017339468,0.33059109,136.29,136.21,0.32072811]
[1768017339669,0.33059109,136.28,136.21,0.32072811]
[1768017341781,0.33059109,136.27,136.21,0.32072811]
[1768017342977,6.94379109,136.27,136.21,0.32072811]
[1768017344374,8.1265839,136.29,136.21,0.32072811]
[1768017344578,1.5142839,136.29,136.21,0.32072811]
[1768017345077,0.33059109,136.28,136.21,0.32072811]
[1768017345581,6.94329109,136.28,136.21,0.32072811]
[1768017350783,0.31108993,136.27,136.21,0.32072811]
[1768017353094,0.31108993,136.27,136.21,6.93662811]
[1768017353383,0.31108993,136.27,136.22,0.33181964]
[1768017358086,0.31108993,136.27,136.22,6.94721964]
[1768017358286,8.10708274,136.29,136.23,0.33181964]
[1768017360091,6.92338993,136.29,136.23,0.33181964]
[1768017360396,0.31108993,136.28,136.23,0.33181964]
[1768017362794,0.31108993,136.28,136.22,6.6154]
[1768017364096,0.31108993,136.28,136.22,6.92031618]
[1768017373998,0.31108993,136.28,136.23,0.30491618]
[1768017394820,0.32220278,136.27,136.21,0.32178756]
[1768017398526,0.32220278,136.27,136.2,6.6161]
[1768017398527,0.32220278,136.26,136.19,0.32178756]
[1768017399320,0.32220278,136.25,136.19,0.32178756]
[1768017399928,5.88864914,136.24,136.19,0.32178756]
[1768017400128,0.32220278,136.24,136.19,0.32178756]
[1768017404630,0.32220278,136.24,136.17,0.32178756]
[1768017409533,6.93680278,136.24,136.17,0.32178756]
[1768017409729,0.32220278,136.23,136.17,0.32178756]
[1768017415637,0.32220278,136.23,136.17,6.93948756]
[1768017420047,0.32220278,136.23,136.18,0.30274022]
[1768017420246,6.93564643,136.25,136.18,0.30274022]
[1768017420647,0.32154643,136.24,136.18,0.30274022]
[1768017438163,5.64604627,136.23,136.18,0.30274022]
[1768017438366,0.32154643,136.24,136.18,0.30274022]
[1768017438563,5.64751912,136.23,136.18,0.30274022]
[1768017438764,0.32154643,136.24,136.18,0.30274022]
[1768017439063,5.64751912,136.23,136.18,0.30274022]
[1768017439364,0.32154643,136.24,136.18,0.30274022]
[1768017439565,5.64914938,136.23,136.18,0.30274022]
[1768017439761,0.32154643,136.24,136.18,0.30274022]
[1768017439962,5.64914938,136.23,136.18,0.30274022]
[1768017440170,0.32154643,136.24,136.18,0.30274022]
[1768017440469,5.64923329,136.23,136.18,0.30274022]
[1768017440677,0.32154643,136.24,136.18,0.30274022]
[1768017440867,5.65072273,136.23,136.18,0.30274022]
[1768017441171,0.32154643,136.24,136.18,0.30274022]
[1768017441372,5.65079435,136.23,136.18,0.30274022]
[1768017441573,0.32154643,136.24,136.18,0.30274022]
[1768017441875,5.65167722,136.23,136.18,0.30274022]
[1768017442170,0.32154643,136.24,136.18,0.30274022]
[1768017442360,5.65174259,136.23,136.18,0.30274022]
[1768017442559,0.32154643,136.24,136.18,0.30274022]
[1768017442763,5.65285155,136.23,136.18,0.30274022]
[1768017442969,0.32154643,136.24,136.18,0.30274022]
[1768017443171,5.65285155,136.23,136.18,0.30274022]
[1768017443375,0.32154643,136.24,136.18,0.30274022]
[1768017443561,5.65440739,136.23,136.18,0.30274022]
[1768017443765,0.32154643,136.24,136.18,0.30274022]
[1768017443965,5.65440739,136.23,136.18,0.30274022]
[1768017444170,0.32154643,136.24,136.18,0.30274022]
[1768017444370,5.65444875,136.23,136.18,0.30274022]
[1768017444571,0.32154643,136.24,136.18,0.30274022]
[1768017444773,5.65561918,136.23,136.18,0.30274022]
[1768017444974,0.32154643,136.24,136.18,0.30274022]
[1768017445174,5.65561918,136.23,136.18,0.30274022]
[1768017445377,0.32982788,136.23,136.16,0.33151145]
[1768017446174,0.32982788,136.23,136.17,0.33151145]
[1768017448670,5.66644383,136.22,136.17,0.33151145]
[1768017448870,0.32982788,136.23,136.17,0.33151145]
[1768017449069,5.66644383,136.22,136.17,0.33151145]
[1768017449270,0.32982788,136.23,136.17,0.33151145]
[1768017449467,5.66636963,136.22,136.17,0.33151145]
[1768017449666,0.32982788,136.23,136.17,0.33151145]
[1768017449866,5.66636963,136.22,136.17,0.33151145]
[1768017450071,0.32982788,136.23,136.17,0.33151145]
[1768017450279,5.66636963,136.22,136.17,0.33151145]
[1768017450573,0.32982788,136.23,136.17,0.33151145]
[1768017450773,5.66630109,136.22,136.17,0.33151145]
[1768017450973,0.32982788,136.23,136.17,0.33151145]
[1768017451178,5.66630109,136.22,136.17,0.33151145]
[1768017451377,0.32982788,136.23,136.17,0.33151145]
[1768017451578,5.66625736,136.22,136.17,0.33151145]
[1768017451875,0.32982788,136.23,136.17,0.33151145]
[1768017452074,5.66645262,136.22,136.17,0.33151145]
[1768017452278,0.32982788,136.23,136.17,0.33151145]
[1768017452478,5.66627488,136.22,136.17,0.33151145]
[1768017452677,0.32982788,136.23,136.17,0.33151145]
[1768017452875,5.99610276,136.22,136.17,0.33151145]
[1768017453077,0.32982788,136.22,136.17,0.33151145]
[1768017469188,0.32982788,136.22,136.17,6.94921145]
[1768017469489,0.32670554,136.25,136.18,0.31853894]
[1768017469685,5.99251477,136.24,136.18,0.31853894]
[1768017469891,5.66580923,136.23,136.18,6.93593894]
[1768017470079,5.66580923,136.22,136.18,6.93593894]
[1768017470278,0.32670554,136.24,136.18,6.93593894]
[1768017470484,5.66585383,136.23,136.18,6.93593894]
[1768017470685,5.66585383,136.22,136.18,6.93593894]
[1768017470884,0.32670554,136.24,136.18,6.93593894]
[1768017471089,5.66585383,136.23,136.18,6.93593894]
[1768017471291,5.66585383,136.22,136.19,6.93549388]
[1768017471590,0.32670554,136.24,136.19,6.93549388]
[1768017471792,5.66589371,136.23,136.19,6.93549388]
[1768017471991,5.66589371,136.22,136.19,6.93549388]
[1768017472290,0.32670554,136.24,136.19,6.93549388]
[1768017472492,5.66595395,136.23,136.19,6.93549388]
[1768017472685,5.66595395,136.22,136.19,6.93549388]
[1768017472886,0.32670554,136.24,136.19,6.93549388]
[1768017473090,5.66556349,136.23,136.19,6.93549388]
[1768017473293,0.32670554,136.24,136.19,6.93549388]
[1768017473492,5.66554673,136.23,136.19,6.93549388]
[1768017473693,0.32670554,136.24,136.19,6.93549388]
[1768017473990,5.66554673,136.23,136.19,6.93549388]
[1768017474193,0.32670554,136.24,136.19,6.93549388]
[1768017474396,5.66518773,136.23,136.19,6.93549388]
[1768017474586,0.32670554,136.24,136.19,6.93549388]
[1768017474787,5.66518773,136.23,136.19,6.93549388]
[1768017474989,0.32670554,136.24,136.19,6.93549388]
[1768017475188,5.66518773,136.23,136.19,6.93549388]
[1768017475391,0.32670554,136.24,136.19,6.93549388]
[1768017475591,5.66512453,136.23,136.19,6.93549388]
[1768017475894,0.32670554,136.24,136.19,6.93549388]
[1768017476093,5.66512453,136.23,136.19,6.93549388]
[1768017476292,0.32670554,136.24,136.19,6.93549388]
[1768017476487,5.66506412,136.23,136.19,6.93549388]
[1768017476693,0.32670554,136.24,136.19,6.93549388]
[1768017476894,5.66506412,136.23,136.19,6.93549388]
[1768017477096,0.32670554,136.24,136.19,6.93549388]
[1768017477292,5.93682588,136.23,136.19,6.93549388]
[1768017477590,0.32670554,136.24,136.19,6.93549388]
[1768017477591,5.93682588,136.22,136.19,6.93549388]
[1768017477791,5.93676539,136.21,136.19,6.93549388]
[1768017477987,0.32670554,136.24,136.19,6.93549388]
[1768017478190,5.93676911,136.23,136.19,6.93549388]
[1768017478391,5.93676911,136.22,136.19,6.93549388]
[1768017478592,0.32670554,136.24,136.19,6.93549388]
[1768017479703,8.12774272,136.26,136.2,0.31869388]
[1768017480206,0.32959385,136.25,136.2,0.31869388]
[1768017490510,5.93163857,136.24,136.2,0.31869388]
[1768017490708,5.93163857,136.23,136.2,0.31869388]
[1768017490906,0.32959385,136.25,136.2,0.31869388]
[1768017491101,6.25385205,136.24,136.19,6.6168]
[1768017491304,5.9316402,136.23,136.19,6.6168]
[1768017491503,5.9316402,136.22,136.19,6.6168]
[1768017491705,0.32221185,136.24,136.19,6.6168]
[1768017491904,5.93222403,136.23,136.19,6.6168]
[1768017492102,5.93222403,136.22,136.19,6.6168]
[1768017492303,0.32221185,136.24,136.19,6.6168]
[1768017492507,5.93151608,136.23,136.19,6.6168]
[1768017492707,5.93151608,136.22,136.19,6.6168]
[1768017492912,0.32221185,136.24,136.19,6.6168]
[1768017493114,5.93151608,136.23,136.19,6.6168]
[1768017493411,0.32221185,136.24,136.19,6.92703722]
[1768017493613,5.93118942,136.23,136.19,6.92703722]
[1768017493813,0.32221185,136.24,136.19,6.92703722]
[1768017494000,5.93118617,136.23,136.19,6.92703722]
[1768017494310,0.32221185,136.24,136.19,6.92703722]
[1768017494505,5.93111416,136.23,136.19,6.92703722]
[1768017494700,0.32221185,136.24,136.19,6.92703722]
[1768017494911,5.93111416,136.23,136.19,6.92703722]
[1768017495111,5.93131605,136.22,136.19,6.92703722]
[1768017495311,0.32221185,136.24,136.19,6.92703722]
[1768017495510,5.93132169,136.23,136.19,6.92703722]
[1768017495799,5.93132169,136.22,136.19,6.92703722]
[1768017496014,0.32221185,136.24,136.19,6.92703722]
[1768017496212,5.9311198,136.23,136.19,6.92703722]
[1768017496414,5.93127658,136.22,136.19,6.92703722]
[1768017496605,0.32221185,136.24,136.19,6.92703722]
[1768017496806,5.93127658,136.23,136.19,6.92703722]
[1768017497007,5.93127658,136.22,136.19,6.92703722]
[1768017497210,0.32221185,136.24,136.19,6.92703722]
[1768017497408,5.93166603,136.23,136.19,6.92703722]
[1768017497708,5.93166603,136.22,136.19,6.92703722]
[1768017497909,0.32221185,136.24,136.19,6.92703722]
[1768017498109,5.93166603,136.23,136.19,6.92703722]
[1768017498311,5.93166603,136.22,136.19,6.92703722]
[1768017498516,0.32221185,136.24,136.19,6.92703722]
[1768017498817,5.93181257,136.23,136.19,6.92703722]
[1768017499113,5.93181257,136.22,136.19,6.92703722]
[1768017499316,0.32221185,136.24,136.19,6.92703722]
[1768017499505,5.93197013,136.23,136.19,6.92703722]
[1768017499704,5.93197013,136.22,136.19,6.92703722]
[1768017499916,0.32221185,136.24,136.19,6.92703722]
[1768017500115,5.93196642,136.23,136.19,6.92703722]
[1768017500413,5.93196642,136.22,136.19,6.92703722]
[1768017500613,0.32221185,136.24,136.19,6.92703722]
[1768017500913,5.93213667,136.23,136.19,6.92703722]
[1768017501108,5.93213667,136.22,136.19,6.92703722]
[1768017501306,0.32221185,136.24,136.19,6.92703722]
[1768017501510,5.93231983,136.23,136.19,6.92703722]
[1768017501802,5.93231983,136.22,136.19,6.92703722]
[1768017502007,0.32221185,136.24,136.19,6.92703722]
[1768017502214,5.93231983,136.23,136.19,6.92703722]
[1768017502414,5.93231983,136.22,136.19,6.92703722]
[1768017502615,0.32221185,136.24,136.19,6.92703722]
[1768017502915,5.93242229,136.23,136.19,6.92703722]
[1768017503122,5.93242229,136.22,136.19,6.92703722]
[1768017503318,0.32221185,136.24,136.19,6.92703722]
[1768017503618,5.93253119,136.23,136.19,6.92703722]
[1768017503811,5.93253119,136.22,136.19,6.92703722]